Cogmind - Beta 16.1 @@@ ROGUE MODE // 2026.02.24 @ 14:46:10 Player: Zish Result: Destroyed by 8R-AWN with 8R-AWN's Boregun Performance ------------- Evolutions (1) 500 Regions Visited (5) 1000 Robots Destroyed (75) 375 Value Destroyed (1510) 1510 Prototype IDs (3) 60 Alien Tech Used (0) 0 Bonus (-137) -137 TOTAL SCORE: 3308 Bonus ------- High Alert Combat Kills 49 Friendly Fire -186 Cogmind --------- Core Integrity 0/400 Matter 166/300 Energy 100/100 System Corruption 3% Temperature Cool (0) Movement Treading (240) Ox1 Location -9/Exiles Parts ------- > --- POWER (1) -------- (None) > --- PROPULSION (3) --- Improved Treads > --- UTILITY (3) ------ High-capacity Storage Unit Improved Targeting Computer Improved Targeting Computer > --- WEAPON (2) ------- Heavy Assault Rifle Hammer > --- INVENTORY (20) --- Improved Flight Unit Faulty Improved Flight Unit Improved VTOL Module Improved VTOL Module Improved VTOL Module Improved VTOL Module Visual Processing Unit Signal Interpreter Light Armor Plating Hacking Suite High-powered Shotgun Rocket Launcher Mini Grenade Launcher Datajack Peak State ------------ > --- POWER ------------ Deuterium Engine > --- PROPULSION ------- Light Treads Light Treads Light Treads > --- UTILITY ---------- High-capacity Storage Unit Improved Targeting Computer Improved Targeting Computer > --- WEAPON ----------- High-powered Shotgun High-powered Shotgun > --- INVENTORY -------- Deuterium Engine Deuterium Engine Deuterium Engine Light Treads Improved Treads Improved Treads Improved VTOL Module Improved VTOL Module Improved VTOL Module Improved VTOL Module Visual Processing Unit Signal Interpreter Light Armor Plating Hacking Suite High-powered Shotgun Shock Bomb Launcher Shock Bomb Launcher Mini Grenade Launcher Datajack Hammer [Rating: 22] Favorites ----------- Power Deuterium Engine Engine Deuterium Engine Propulsion Light Treads Treads Light Treads Utility High-capacity Storage Unit Storage High-capacity Storage Unit Processor Improved Targeting Computer Protection Light Armor Plating Weapon High-powered Shotgun Energy Gun Small Laser Ballistic Gun High-powered Shotgun Ballistic Cannon Light Cannon Launcher Mini Grenade Launcher Impact Weapon Hammer Build | -11 -10 -10 -9 -9 -9 ------- Run | Yrd Mat Min Mat Min Exi Slots Evolved 2 | . . . 2 . . Power . | . . . . . . Propulsion 1 | . . . 1 . . Utility 1 | . . . 1 . . Weapon . | . . . . . . Parts Attached 34 | 6 3 . 14 10 1 Power 5 | 1 . . 2 2 . Engine 5 | 1 . . 2 2 . Core . | . . . . . . Reactor . | . . . . . . Propulsion 11 | 2 . . 6 3 . Treads 11 | 2 . . 6 3 . Leg . | . . . . . . Wheel . | . . . . . . Hover . | . . . . . . Flight . | . . . . . . Utility 6 | 1 2 . 3 . . Device . | . . . . . . Storage 2 | 1 1 . . . . Processor 3 | . 1 . 2 . . Hackware . | . . . . . . Protection 1 | . . . 1 . . Artifact . | . . . . . . Weapon 12 | 2 1 . 3 5 1 Energy Gun 1 | 1 . . . . . Energy Cannon . | . . . . . . Ballistic Gun 6 | 1 . . 3 2 . Ballistic Cannon 1 | . 1 . . . . Launcher 3 | . . . . 3 . Special Weapon . | . . . . . . Impact Weapon 1 | . . . . . 1 Slashing Weapon . | . . . . . . Piercing Weapon . | . . . . . . Special Melee Weapon . | . . . . . . Unidentified Prototypes . | . . . . . . Parts Lost 18 | . . . 6 11 1 Power 3 | . . . . 2 1 Propulsion 9 | . . . 4 5 . Utility . | . . . . . . Weapon 6 | . . . 2 4 . Highest Loss Streak 7 | . . . 2 7 1 To Critical Strikes 1 | . . . . . 1 Average Backups 12 | 1 5 7 18 14 14 Power 1 | . 1 2 2 . . Propulsion 3 | . . 1 6 6 6 Utility 2 | . . 1 2 4 4 Weapon 3 | . 1 3 5 2 3 Tool/Special . | . . . . . . Unused Backups 15 | . . . 4 . 11 Power 2 | . . . 2 . . Propulsion 6 | . . . . . 6 Utility 3 | . . . . . 3 Weapon 3 | . . . 2 . 1 Tool/Special 1 | . . . . . 1 Average Slot Usage (%) 91 | . 91 100 94 78 77 Engine 12 | . 14 14 11 10 11 Treads 26 | . 28 28 31 13 11 Storage 12 | . 14 14 11 11 11 Processor 15 | . 5 14 17 22 22 Energy Gun 1 | . 8 . . . . Ballistic Gun 14 | . 14 14 17 11 11 Ballistic Cannon 5 | . 5 14 4 . . Launcher 1 | . . . . 10 9 Peak Build Rating 22 | 6 7 7 22 22 17 Average Rating 13 | 4 6 7 18 17 16 On Entrance 9 | . 6 7 7 22 17 Avg Prop Armor Cover (%) . | . . . . . . Naked Turns . | . . . . . . Heaviest Build 58 | 10 47 47 58 55 54 Greatest Support 63 | 40 40 40 60 63 23 Greatest Overweight (x) 2 | . 1 1 1 2 2 Average Overweight (x) . | . . 1 . 1 2 Largest Inventory Capacity 20 | 8 20 20 20 20 20 Average Capacity 19 | 7 18 20 20 20 20 Most Carried 20 | 2 7 7 20 20 14 Average Carried 12 | 1 5 7 18 14 14 Final Capacity 20 | 8 20 20 20 20 20 Final Carried 20 | 2 7 7 20 14 14 Class Distribution -------------------- 97% | Mutant Dominant Class ---------------- Mutant | -10/Materials Mutant | -10/Mines Mutant | -9/Materials Mutant | -9/Mines Mutant | -9/Exiles Resources | -11 -10 -10 -9 -9 -9 ----------- Run | Yrd Mat Min Mat Min Exi Matter Collected 1490 | 192 226 23 897 152 . Remotely . | . . . . . . Salvage Created 2223 | . 732 9 1402 80 . Parts 146 | . 33 3 107 3 . Haulers Intercepted 6 | . 2 . 4 . . Recyclers Shooed 6 | . 5 . 1 . . Parts Field Recycled . | . . . . . . Retrieved Matter . | . . . . . . Parts Self-Destructed . | . . . . . . Prevented . | . . . . . . Parts Restored . | . . . . . . Kills | -11 -10 -10 -9 -9 -9 ------- Run | Yrd Mat Min Mat Min Exi Combat Hostiles Destroyed 61 | . 7 . 36 18 . Guns 40 | . 7 . 30 3 . Cannons 6 | . . . 6 . . AOE 15 | . . . . 15 . Classes Destroyed 12 | . 7 . 3 2 . Worker 5 | . 2 . 3 . . Builder 6 | . 1 1 4 . . Tunneler 3 | . 1 . 1 1 . Hauler 6 | . 2 . 4 . . Recycler 5 | . 3 . 2 . . Operator 4 | . 2 . 2 . . Watcher 1 | . . . 1 . . Swarmer 14 | . . . 14 . . Grunt 22 | . 7 . 15 . . Sentry 7 | . . . 7 . . Demolisher 2 | . . . . 2 . Assembled 16 | . . . . 16 . Best Kill Streak 16 | . 5 1 7 16 . Combat Bots Only 16 | . 2 . 6 16 . Max Kills in Single Turn 5 | . 1 1 2 5 . Gunslinging 1 | . . . 1 . . Exploded 4 | . . . . 4 . Melee . | . . . . . . Uniques/NPCs Destroyed . | . . . . . . Combat | -11 -10 -10 -9 -9 -9 -------- Run | Yrd Mat Min Mat Min Exi Hostile Shots Fired 227 | . 37 . 125 57 8 Missed 51 | . 11 . 27 11 2 Hits 176 | . 26 . 98 46 6 Melee 3 | . . . . 3 . Projectile 173 | . 26 . 98 43 6 AOE 21 | . . . . 21 . Critical Strikes 5 | . . . 1 . 4 Damage Taken 2972 | . 299 . 1131 1435 107 Core 434 | . 33 . 119 231 51 Absorbed by Shields . | . . . . . . Core Remaining (%) 93 | 100 . 86 . . . Volleys Fired 190 | . 68 8 95 19 . Largest 2 | . 2 2 2 2 . Hottest 61 | . 60 50 55 61 . Shots Fired 370 | . 136 16 186 30 2 Gun 286 | . 123 8 135 18 2 Cannon 72 | . 13 8 51 . . Launcher 12 | . . . . 12 . Special . | . . . . . . Kinetic 303 | . 81 16 186 18 2 Thermal 55 | . 55 . . . . Explosive 10 | . . . . 10 . Electromagnetic 2 | . . . . 2 . Robot Hit Streak 16 | . 14 4 16 6 1 Robot Miss Streak 4 | . 4 1 4 2 1 Penetration Max . | . . . . . . Secondary Targets 3 | . 2 . 1 . . Max Gunslinging Chain 1 | . 1 . 1 . . Shots Hit Robots 270 | . 95 12 133 27 3 Core Hits 147 | . 38 3 73 32 1 Critical Kills 1 | . . . 1 . . Critical Parts Destroyed 2 | . . . 1 . 1 Critical Strikes 5 | . . 1 3 . 1 Destroy 2 | . . . 2 . . Blast 2 | . . 1 1 . . Smash 1 | . . . . . 1 Melee Attacks 2 | . . . . . 2 Impact 2 | . . . . . 2 Slashing . | . . . . . . Piercing . | . . . . . . Sneak Attacks 1 | . . . . . 1 Combat Hostiles . | . . . . . . Follow-up Attacks . | . . . . . . Damage Inflicted 5137 | . 993 153 2617 1281 93 Guns 3324 | . 816 51 2155 288 14 Cannons 735 | . 171 102 462 . . Explosions 993 | . . . . 993 . Melee 79 | . . . . . 79 Ramming 6 | . 6 . . . . Kinetic 3614 | . 542 153 2617 288 14 Thermal 445 | . 445 . . . . Explosive 928 | . . . . 928 . Electromagnetic 65 | . . . . 65 . Impact 79 | . . . . . 79 Slashing . | . . . . . . Piercing . | . . . . . . Highest Corruption 3 | . 1 1 1 3 3 Average Corruption 1 | . 1 1 1 2 3 Corruption Purged . | . . . . . . Corruption Blocked . | . . . . . . Effects 33 | . 4 6 5 13 5 Message Errors 10 | . 1 3 1 4 1 Matter Fused 8 | . 1 1 2 2 2 Heat Flow Errors 4 | . . 2 1 1 . Energy Discharges 2 | . . . . 2 . Data Loss (minor) 5 | . 2 . . 3 . Data Loss (major) 2 | . . . 1 1 . Misfires 2 | . . . . . 2 Overload Shots . | . . . . . . Overflow Damage 85 | . 18 . 10 40 17 Projectiles 28 | . 18 . 10 . . Explosions 40 | . . . . 40 . Melee 17 | . . . . . 17 Knockbacks 9 | . 2 1 5 . 1 Impact 1 | . . . . . 1 Kinetic 7 | . 2 1 4 . . Secondary 1 | . . . 1 . . Self-Inflicted Damage 196 | . . . . 196 . Shots 5 | . . . . 5 . Rammed 2 | . 1 . 1 . . Targets Rammed 2 | . 1 . 1 . . Kicked . | . . . . . . Crushed . | . . . . . . Highest Temperature 275 | . 120 275 262 109 . Average Temperature 37 | . 30 69 40 55 . Received Heat Transfer 492 | . 162 . 330 . . Siege Activations . | . . . . . . Martial Activations . | . . . . . . Shielding Activations . | . . . . . . Robots Disrupted . | . . . . . . Combat Hostiles . | . . . . . . Robots Corrupted . | . . . . . . Combat Hostiles . | . . . . . . Parts Fried . | . . . . . . Impact Corruptions 1 | . . . . . 1 Robots Melted . | . . . . . . Combat Hostiles . | . . . . . . Parts Melted . | . . . . . . Heat Transferred 1000 | . 1000 . . . . Parts Sabotaged . | . . . . . . Parts Stolen . | . . . . . . Parts Stripped . | . . . . . . Power Chain Reactions . | . . . . . . Alert | -11 -10 -10 -9 -9 -9 ------- Run | Yrd Mat Min Mat Min Exi Maximum Alert Level 2 | . . . 2 1 . Low Security (%) 69 | 100 100 100 26 99 . Level 1 15 | . . . 37 . . Level 2 15 | . . . 36 . . Level 3 . | . . . . . . Level 4 . | . . . . . . Level 5 . | . . . . . . High Security . | . . . . . . Max Security . | . . . . . . Peak Influence 528 | . 65 5 528 202 . Initial 198 | . . . . 198 . Average 135 | . 12 . 298 52 . Influence Increases 1493 | . 250 5 1107 131 . Destroy 0b10 Robot/C 900 | . 140 . 720 40 . Destroy 0b10 Robot/NC 150 | . 55 5 85 5 . Destroy Leader 224 | . 34 . 180 10 . Successful Hack 12 | . 6 . 6 . . Select Force Hacks 30 | . . . 30 . . Disable Machine 15 | . . . 15 . . Destroy Structure 72 | . . . 11 61 . Lose Combat Pursuer 90 | . 15 . 60 15 . Influence Decreases 1493 | . 250 5 598 640 . Entered New Map 311 | . . . . 311 . Time Decay 1012 | . 250 5 538 219 . Lost Part 170 | . . . 60 110 . Squads Dispatched 9 | . 2 . 7 . . Investigation 5 | . . . 5 . . Extermination . | . . . . . . Reinforcement 4 | . 2 . 2 . . Assault . | . . . . . . Garrison . | . . . . . . Intercept . | . . . . . . Searches Triggered . | . . . . . . Construction Impeded . | . . . . . . Haulers Reinforced . | . . . . . . Active Scanning Responses . | . . . . . . Cargo Convoy Interrupts . | . . . . . . Stealth | -11 -10 -10 -9 -9 -9 --------- Run | Yrd Mat Min Mat Min Exi Distress Signals 1 | . . . 1 . . Communications Jammed . | . . . . . . Distress Signals . | . . . . . . Times Spotted 81 | . 14 . 41 19 7 Peak Tracking Total 16 | . 2 . 6 16 9 Tactical Retreats 7 | . 1 . 4 2 . Traps | -11 -10 -10 -9 -9 -9 ------- Run | Yrd Mat Min Mat Min Exi Traps Triggered 5 | . 1 . 4 . . Indirectly . | . . . . . . Trap Hack Attempts . | . . . . . . Triggered . | . . . . . . Disarmed . | . . . . . . Reprogrammed . | . . . . . . Reused . | . . . . . . Traps Extracted . | . . . . . . Installed . | . . . . . . Triggered . | . . . . . . Machines | -11 -10 -10 -9 -9 -9 ---------- Run | Yrd Mat Min Mat Min Exi Machines Disabled 1 | . . . 1 . . Max in Single Turn 1 | . . . 1 . . Machines Repaired . | . . . . . . Machines Dismantled . | . . . . . . Machines Sabotaged . | . . . . . . Overloaded Fab Kills . | . . . . . . Hacking | -11 -10 -10 -9 -9 -9 --------- Run | Yrd Mat Min Mat Min Exi Machines Accessed 7 | . 2 . 4 1 . Terminals 6 | . 2 . 3 1 . Fabricators . | . . . . . . Repair Stations . | . . . . . . Recycling Units . | . . . . . . Scanalyzers 1 | . . . 1 . . Garrison Access . | . . . . . . Total Hacks 28 | . 6 . 20 2 . Successful 10 | . 2 . 7 1 . Failed 18 | . 4 . 13 1 . Catastrophic 2 | . . . 2 . . Database Lockouts . | . . . . . . Manual 21 | . 6 . 15 . . Terminals 23 | . 6 . 15 2 . Fabricators . | . . . . . . Repair Stations . | . . . . . . Recycling Units . | . . . . . . Scanalyzers 5 | . . . 5 . . Garrison Access . | . . . . . . Terminal Hacks 3 | . 1 . 1 1 . Prototype ID Bank 1 | . . . 1 . . Branch Access Points 1 | . 1 . . . . Zone Layout 1 | . . . . 1 . Fabricator Hacks . | . . . . . . Repair Station Hacks . | . . . . . . Recycling Unit Hacks . | . . . . . . Scanalyzer 3 | . . . 3 . . Insert Component 1 | . . . 1 . . Analyze 1 | . . . 1 . . Retrieve Study 1 | . . . 1 . . Garrison Access Hacks . | . . . . . . Unauthorized Hacks 4 | . 1 . 3 . . Terminals 3 | . 1 . 2 . . Assimilate 1 | . . . 1 . . Operators 2 | . 1 . 1 . . Fabricators . | . . . . . . Repair Stations . | . . . . . . Recycling Units . | . . . . . . Scanalyzers 1 | . . . 1 . . Extract 1 | . . . 1 . . Garrison Access . | . . . . . . Data Cores Recovered . | . . . . . . Used . | . . . . . . Hacking Detections 5 | . 1 . 3 1 . Full Trace Events 3 | . 1 . 2 . . Feedback Events . | . . . . . . Feedback Blocked . | . . . . . . Robot Schematics Acquired . | . . . . . . Robots Built . | . . . . . . Authchips . | . . . . . . Time . | . . . . . . Total Robot Build Rating . | . . . . . . Part Schematics Acquired 3 | . . . 3 . . Parts Built . | . . . . . . Authchips . | . . . . . . Time . | . . . . . . Total Part Build Rating . | . . . . . . Part Studies Acquired . | . . . . . . Parts Repaired . | . . . . . . Time . | . . . . . . Parts Recycled . | . . . . . . Recycled Matter . | . . . . . . Retrieved Matter . | . . . . . . Retrieved Components . | . . . . . . Parts Scanalyzed 1 | . . . 1 . . Part Schematics Acquired 1 | . . . 1 . . Parts Damaged . | . . . . . . Bothacking | -11 -10 -10 -9 -9 -9 ------------ Run | Yrd Mat Min Mat Min Exi Used RIF Installer . | . . . . . . Robots Hacked . | . . . . . . Non-combat . | . . . . . . Combat . | . . . . . . Robot Hacks Applied . | . . . . . . Relay Couplers Released . | . . . . . . Fabnet Peak Effective % . | . . . . . . Robots Rewired . | . . . . . . Allies Hacked . | . . . . . . Hacks Repelled . | . . . . . . Allies | -11 -10 -10 -9 -9 -9 -------- Run | Yrd Mat Min Mat Min Exi Total Allies . | . . . . . . Largest Group . | . . . . . . Highest-Rated Group . | . . . . . . Highest-Rated Ally . | . . . . . . Total Orders . | . . . . . . Ally Attacks . | . . . . . . Total Damage . | . . . . . . Kills . | . . . . . . Allies Corrupted . | . . . . . . Allies Melted . | . . . . . . Intel | -11 -10 -10 -9 -9 -9 ------- Run | Yrd Mat Min Mat Min Exi Active Infowar (turns) . | . . . . . . Robot Analysis Total . | . . . . . . Derelict Logs Recovered . | . . . . . . Drone Launches . | . . . . . . Drone Recoveries . | . . . . . . Exploration | -11 -10 -10 -9 -9 -9 ------------- Run | Yrd Mat Min Mat Min Exi Turns Passed 5445 | 99 1292 909 2210 797 138 Spaces Moved 2285 | 61 486 370 1077 250 41 Core 8 | 8 . . . . . Treads 2277 | 53 486 370 1077 250 41 Legs . | . . . . . . Wheels . | . . . . . . Hover . | . . . . . . Flight . | . . . . . . Fastest Speed 50 | 50 160 240 160 160 320 Average Speed 204 | 145 223 240 164 284 320 Slowest Speed 320 | 160 240 240 240 320 320 Overloaded Moves . | . . . . . . Propulsion Burnouts . | . . . . . . Robots Hopped . | . . . . . . Potential Cave-ins . | . . . . . . Cave-ins Triggered . | . . . . . . Exploration Rate (%) 45 | 5 59 69 82 46 11 Regions Visited 5 Branch Regions 3 Pre-discovered Areas 1 | . . 1 . . . Known Exits Taken 1 | . 1 . . . . Unknown Exits Taken 4 | 1 . 1 1 1 . Scrap Searched 2 | . . 1 . 1 . Spaces Dug . | . . . . . . Terrain Destroyed 87 | . . . . 87 . Melee . | . . . . . . Projectile . | . . . . . . AOE 87 | . . . . 87 . Terrain Rammed . | . . . . . . Walls Destroyed . | . . . . . . Machines Disabled . | . . . . . . Actions | -11 -10 -10 -9 -9 -9 --------- Run | Yrd Mat Min Mat Min Exi Total 2696 | 68 570 378 1328 307 45 Wait 135 | . 6 . 105 24 . Move 2280 | 60 485 369 1076 249 41 Hop . | . . . . . . Pick Up 33 | 2 4 . 25 2 . Fast Attach 15 | 6 3 . 4 2 . Attach 17 | . . . 7 9 1 Detach 7 | . 2 . 3 1 1 Swap 3 | . . . 3 . . Drop 11 | . 1 . 9 1 . Fire 190 | . 68 8 95 19 . Melee 2 | . . . . . 2 Ram . | . . . . . . Kick . | . . . . . . Crush 2 | . 1 . 1 . . Escape Stasis . | . . . . . . Rewire 1 | . . 1 . . . Trap . | . . . . . . Miscellaneous . | . . . . . . Route ------- -11/Scrapyard -10/Materials (discovered 2 exits: *Mat / *Min) -10/Mines -9/Materials (discovered 4 exits: [*Mat x3] / *Min) -9/Mines (discovered 2 exits: [Mat] / [*Exi]) -9/Exiles History --------- Turn | Location | Event 5 | -11/Scrapyard | Discovered new exit (range 15) 100 | -11/Scrapyard | Entered Materials 215 | -10/Materials | Identified exit to Mines 310 | -10/Materials | Build established: Mutant 856 | -10/Materials | Discovered new exit (range 6) 1392 | -10/Materials | Entered Mines 1758 | -10/Mines | Learned location of Storage (-8) 2269 | -10/Mines | Discovered new exit (range 7) 2301 | -10/Mines | Entered Materials 2301 | -9/Materials | Evolved 2 slots: Propulsion x1, Utility x1 3275 | -9/Materials | Discovered new exit (range 15) 3602 | -9/Materials | Discovered new exit (range 16) 3961 | -9/Materials | Discovered new exit (range 14) 4255 | -9/Materials | Discovered new exit (range 15) 4511 | -9/Materials | Entered Mines 4540 | -9/Mines | Assembled infested the area 4582 | -9/Mines | Core integrity fell below 50% 4602 | -9/Mines | Destroyed 16 combat bots 4612 | -9/Mines | Lost 4 parts (1p2n1w) 4643 | -9/Mines | Core integrity fell below 20% 4669 | -9/Mines | Lost 7 parts (1p3n3w) 4982 | -9/Mines | Received a Rocket Launcher from a helpful Derelict 5033 | -9/Mines | Discovered new exit (range 13) 5292 | -9/Mines | Deemed a non-threat by the Exiles lab entrance 5292 | -9/Mines | Discovered new exit (range 5) 5308 | -9/Mines | Entered Exiles 5385 | -9/Exiles | Met 8R-AWN 5439 | -9/Exiles | Attacked by the Exiles 5446 | -9/Exiles | Destroyed by 8R-AWN with 8R-AWN's Boregun Last Messages --------------- 05439_ Machine disabled. 05439_ HV Slug penetrates Wall. 05441_ Penetrated by HV Slug. 05441_ HV Slug penetrates Wall. 05441_ Penetrated by HV Slug. 05441_ Critical hit (Destroy). 05441_ Deuterium Engine destroyed. 05441_ HV Slug penetrates Wall. 05443_ Penetrated by HV Slug. 05443_ HV Slug penetrates Wall. 05443_ HV Slug penetrates Earth. 05444_ System corrupted: FCS attempts to trigger Hvy. Assault Rifle. 05444_ System corrupted: Hvy. Assault Rifle misfires. 05444_ 8R-AWN suffers critical hit (Smash). 05444_ Destroyed Prototype Leg. 05444_ 8R-AWN system corrupted by crushing effect. 05446_ Penetrated by HV Slug. Map ----- +----------------------------------------------------+ | ?????????????????????????????????????????????????? | | ?????????????????????????????????????????????????? | | ?????????????????????????????????????????????????? | | ?????????????????????????????????????????????????? | | ?????????????????????????????????????????????????? | | ?????????????????????????????????????????????????? | | ?????????????????????????????????????????????????? | | ?????????????????????????????????????????????????? | | ?????????????????????????????????????????????????? | | ?????????????????????????????????????????????????? | | ?????????????????????????????????????????????????? | | ?????????????????????????????????????????????????? | | ?????????????????????????????????????????????????? | | ?????????????????????????????????????????????????? | | ?????????????????????????????????????????????????? | | ?????????????????????????????????????????????????? | | ?????????????????????????????????????????????????? | | ?????????????????????????????????????????????????? | | ?????????????????????????????????????????????????? | | ?????????????????????????????????????????????? ? | | ?????????????????????????????????????????????# # | | ????????????????????????????????????????????# # | | ??????????????????????##???????????????????# | | ??????????????????????#;####???????????????# | | ??????????????????????## #??????????????## | | ??????????????????????#" @ #?????????????## #? | | ?????????????????????##" g ##????????????# #? | | ???????????????????###aa ###????????### #?? | | ???????????????????# ########## #?? | | ??????????????????## a #""""## #??? | | ??????????????????#a * ##?? | | ???????????? ## * #?? | | ???????????? a #?## ##? | | ???????????? a ""??#"""""#### ## | | ???????????? #"""#??#######??#### * | | ???????????? #####???????????????##### | | ????????????? #????????????????????????### | | ????????????? ????????????????????????????### | | ?????????????????????????????????????????????### | | ??????????????????????????????????????????????#" | | ??????????????????????????????????????????????#### | | ?????????????????????????????????????????????????# | | ?????????????????????????????????????????????????# | | ?????????????????????????????????????????????????? | | ?????????????????????????????????????????????????? | | ?????????????????????????????????????????????????? | | ?????????????????????????????????????????????????? | | ?????????????????????????????????????????????????? | | ?????????????????????????????????????????????????? | | ?????????????????????????????????????????????????? | +----------------------------------------------------+ Best States ------------- Heat Dissipation 28 Energy Generation 14 Energy Capacity 275 Matter Stores 300 Matter Capacity 300 Sight Range 16 Terrain Scan Density 10 Armor Coverage 150 Evasion (%) 40 Targeting Accuracy 12 Recoil Reduction 3 Item Schematics ----------------- Imp. VTOL Module | -9/Materials | Scanalyzed Ion Engine | -9/Materials | Extracted Hover Unit | -9/Materials | Extracted Robot Schematics ------------------ None Fabricated ------------ Nothing Repaired ---------- Nothing Studied --------- None Alien Tech Used ----------------- None Achievements -------------- Exterminator Challenges ------------ None Game ------ Seed CompanionPhaseArchive Manual? 0 Play Time 00:22:43 Cumulative 31.0 hours Start 2026.02.24 @ 14:23:32 End 2026.02.24 @ 14:46:10 Sessions 1 Manual Loads 0 Difficulty Rogue Special Mode None Game No. 84 Rogue 84 Adventurer 0 Explorer 0 Win Type - Total 0 Types 0/0/0/0/0/0/0/0/0/0 Lore% 18 Gallery% 28 Achievement% 22 Wizard Run 0 Options --------- Layout 1 ASCII 0 Keyboard 1 Movement Vi Keybinds 0 Fullscreen 1 Font 24/Smallcaps Map View 50x35 Zoom Use 0% Tactical HUD 1 Map Filters NONE Filters NONE Steam 1 RUN: 5e04c9f2-b47d-4c5e-b7ca-a59c92efb089